[Event "44th Chess Olympiad Women 2022"]
[Site "Chennai"]
[Date "2022.08.08"]
[Round "10.57"]
[White "Moore, Gaybrianna"]
[Black "Estur, Grace Co"]
[Result "1-0"]
[WhiteElo "1335"]
[BlackElo "1472"]
[Annotator "NA RC"]
[PlyCount "101"]
[EventDate "2022.??.??"]
[TimeControl "60"]

1. d4 {[%emt 0:00:06]} d5 {[%emt 0:00:09]} 2. Bf4 {[%emt 0:00:18]} Nf6 {
[%emt 0:00:38]} 3. e3 {[%emt 0:00:28]} e6 {[%emt 0:00:29]} 4. Nf3 {[%emt 0:00:
00]} c5 {[%emt 0:03:02]} 5. c3 {[%emt 0:00:20]} Nc6 {[%emt 0:01:15]} 6. Bd3 {
[%emt 0:01:03]} Be7 {[%emt 0:02:51]} 7. h3 {[%emt 0:00:35]} Qb6 {[%emt 0:02:55]
} 8. Qc1 {[%emt 0:01:08]} cxd4 {[%emt 0:03:52]} 9. exd4 {[%emt 0:00:20]} O-O {
[%emt 0:01:08]} 10. Nbd2 {[%emt 0:02:15]} Bd7 {[%emt 0:01:25]} 11. Rb1 {
[%emt 0:01:54]} Rac8 {[%emt 0:02:07]} 12. Qd1 {[%emt 0:03:34]} Na5 {[%emt 0:00:
00]} 13. Qe2 {[%emt 0:04:05]} a6 {[%emt 0:04:02]} 14. Ne5 {[%emt 0:04:39]} Bb5
{[%emt 0:06:45]} 15. Bg5 {[%emt 0:03:33]} Rc7 {[%emt 0:01:14]} 16. Bxb5 {
[%emt 0:04:43]} axb5 {[%emt 0:01:30]} 17. Bf4 {[%emt 0:02:17]} Bd6 {[%emt 0:00:
00]} 18. O-O {[%emt 0:05:47]} Nd7 {[%emt 0:07:38]} 19. Nxd7 {[%emt 0:03:11]}
Rxd7 {[%emt 0:00:26]} 20. Bxd6 {[%emt 0:00:10]} Rxd6 {[%emt 0:00:20]} 21. Nf3 {
[%emt 0:00:09]} f6 {[%emt 0:03:54]} 22. b3 {[%emt 0:00:49]} Nc6 {[%emt 0:04:27]
} 23. Rfc1 {[%emt 0:04:43]} Re8 {[%emt 0:02:19]} 24. Qd3 {[%emt 0:03:44]} b4 {
[%emt 0:08:05]} 25. c4 {[%emt 0:04:48]} Qa6 {[%emt 0:03:09]} 26. Qc2 {[%emt 0:
00:00]} Rd7 {[%emt 0:02:53]} 27. cxd5 {[%emt 0:05:36]} Rxd5 {[%emt 0:00:44]}
28. Rd1 {[%emt 0:06:09]} Qb5 {[%emt 0:01:09]} 29. Qc4 {[%emt 0:01:15]} Qb6 {
[%emt 0:01:05]} 30. Rd2 {[%emt 0:03:16]} Kf8 {[%emt 0:02:50]} 31. Re1 {[%emt 0:
00:00]} Qa6 {[%emt 0:03:37]} 32. Rxe6 {[%emt 0:02:56]} Qa5 {[%emt 0:04:08]} 33.
Qe2 {[%emt 0:02:58]} Red8 {[%emt 0:04:17]} 34. Qe3 {[%emt 0:03:10]} Qa3 {
[%emt 0:01:51]} 35. Re2 {[%emt 0:02:29]} Qa8 {[%emt 0:00:58]} 36. Qe4 {[%emt 0:
00:00]} Nxd4 {[%emt 0:09:47]} 37. Nxd4 {[%emt 0:00:17]} Rxd4 {[%emt 0:00:38]}
38. Qxh7 {[%emt 0:00:41]} R4d7 {[%emt 0:03:36]} 39. Qh8+ {[%emt 0:01:25]} Kf7 {
[%emt 0:00:32]} 40. Qh5+ {[%emt 0:00:09]} Kf8 {[%emt 0:00:42]} 41. Qc5+ {
[%emt 0:30:23]} Kf7 {[%emt 0:02:11]} 42. Re7+ {[%emt 0:00:00]} Kg8 {[%emt 0:00:
00]} 43. Qc4+ {[%emt 0:00:00]} Rd5 {[%emt 0:01:42]} 44. Qxb4 {[%emt 0:00:00]}
Re5 {[%emt 0:02:49]} 45. R2xe5 {[%emt 0:00:00]} fxe5 {[%emt 0:01:38]} 46. Qg4 {
[%emt 0:00:00]} Rd1+ {[%emt 0:03:36]} 47. Qxd1 {[%emt 0:00:00]} e4 {[%emt 0:00:
00]} 48. Qd5+ {[%emt 0:00:00]} Kh8 {[%emt 0:00:44]} 49. Qh5+ {[%emt 0:00:00]}
Kg8 {[%emt 0:01:37]} 50. Qf7+ {[%emt 0:00:00]} Kh7 {[%emt 0:01:18]} 51. Qxg7# {
[%emt 0:00:00]} 1-0

[Event "44th Chess Olympiad Women 2022"]
[Site "Chennai"]
[Date "2022.08.08"]
[Round "10.57"]
[White "Nacario, Ruth"]
[Black "Wilson, Hannah"]
[Result "0-1"]
[WhiteElo "1552"]
[BlackElo "1556"]
[Annotator "NA RC"]
[PlyCount "82"]
[EventDate "2022.??.??"]
[TimeControl "60"]

1. d4 {[%emt 0:00:30]} d5 {[%emt 0:00:10]} 2. c4 {[%emt 0:00:00]} c6 {[%emt 0:
00:00]} 3. Nc3 {[%emt 0:01:32]} Nf6 {[%emt 0:00:16]} 4. Bg5 {[%emt 0:00:15]} e6
{[%emt 0:01:09]} 5. Nf3 {[%emt 0:00:32]} Be7 {[%emt 0:03:31]} 6. e3 {[%emt 0:
00:00]} Nbd7 {[%emt 0:02:38]} 7. Bd3 {[%emt 0:01:53]} O-O {[%emt 0:03:52]} 8.
Qc2 {[%emt 0:01:41]} dxc4 {[%emt 0:03:06]} 9. Bxc4 {[%emt 0:00:13]} b5 {
[%emt 0:00:56]} 10. Bd3 {[%emt 0:00:31]} Bb7 {[%emt 0:01:05]} 11. O-O {[%emt 0:
00:00]} h6 {[%emt 0:01:55]} 12. Bh4 {[%emt 0:01:06]} a6 {[%emt 0:04:33]} 13. e4
{[%emt 0:05:28]} c5 {[%emt 0:02:12]} 14. Be2 {[%emt 0:06:57]} cxd4 {[%emt 0:00:
00]} 15. Nxd4 {[%emt 0:00:19]} b4 {[%emt 0:03:25]} 16. Nb1 {[%emt 0:06:21]}
Bxe4 {[%emt 0:03:00]} 17. Qa4 {[%emt 0:02:55]} Nb6 {[%emt 0:08:04]} 18. Qd1 {
[%emt 0:00:27]} Qc7 {[%emt 0:03:05]} 19. Bg3 {[%emt 0:04:01]} Qc5 {[%emt 0:00:
00]} 20. Nf3 {[%emt 0:01:01]} Rfd8 {[%emt 0:01:31]} 21. Nbd2 {[%emt 0:00:29]}
Qf5 {[%emt 0:05:40]} 22. Nh4 {[%emt 0:03:40]} Qg5 {[%emt 0:05:54]} 23. f4 {
[%emt 0:03:41]} Qc5+ {[%emt 0:00:31]} 24. Bf2 {[%emt 0:00:46]} Qc7 {[%emt 0:00:
00]} 25. Be3 {[%emt 0:02:15]} Bc5 {[%emt 0:02:01]} 26. Bxc5 {[%emt 0:01:23]}
Qxc5+ {[%emt 0:00:11]} 27. Rf2 {[%emt 0:01:55]} Rac8 {[%emt 0:05:17]} 28. Qe1 {
[%emt 0:05:19]} Bd3 {[%emt 0:05:38]} 29. Bd1 {[%emt 0:03:38]} Nbd5 {[%emt 0:00:
00]} 30. Nb3 {[%emt 0:07:32]} Qb6 {[%emt 0:00:39]} 31. Kh1 {[%emt 0:02:36]} Ne3
{[%emt 0:02:55]} 32. Nf3 {[%emt 0:05:07]} Ne4 {[%emt 0:02:55]} 33. Nbd4 {
[%emt 0:04:27]} Nxf2+ {[%emt 0:03:33]} 34. Qxf2 {[%emt 0:00:01]} Nxd1 {[%emt 0:
00:00]} 35. Rxd1 {[%emt 0:00:02]} Be4 {[%emt 0:00:35]} 36. Ne1 {[%emt 0:02:26]}
Rc4 {[%emt 0:01:20]} 37. Nef3 {[%emt 0:11:22]} Bxf3 {[%emt 0:00:31]} 38. gxf3 {
[%emt 0:01:13]} Rcxd4 {[%emt 0:00:31]} 39. Rg1 {[%emt 0:00:47]} Qd6 {[%emt 0:
00:00]} 40. Qg3 {[%emt 0:00:49]} Qf8 {[%emt 0:00:59]} 41. Qg5 {[%emt 0:30:29]}
hxg5 {[%emt 0:30:21]} 0-1

[Event "44th Chess Olympiad Women 2022"]
[Site "Chennai"]
[Date "2022.08.08"]
[Round "10.58"]
[White "Dotse Dzidzor Esi"]
[Black "Terubea, Cydel"]
[Result "0-1"]
[WhiteElo "1195"]
[BlackElo "1450"]
[Annotator "NA RC"]
[PlyCount "64"]
[EventDate "2022.??.??"]
[TimeControl "60"]

1. d4 {[%emt 0:00:06]} d5 {[%emt 0:00:04]} 2. c4 {[%emt 0:00:04]} e6 {[%emt 0:
00:00]} 3. Nc3 {[%emt 0:00:05]} Nf6 {[%emt 0:00:22]} 4. Nf3 {[%emt 0:00:09]} c5
{[%emt 0:01:02]} 5. cxd5 {[%emt 0:02:47]} exd5 {[%emt 0:01:58]} 6. dxc5 {
[%emt 0:01:40]} Bxc5 {[%emt 0:00:22]} 7. Bg5 {[%emt 0:01:02]} d4 {[%emt 0:00:
00]} 8. Bxf6 {[%emt 0:01:15]} Qxf6 {[%emt 0:00:23]} 9. Ne4 {[%emt 0:01:15]}
Bb4+ {[%emt 0:00:14]} 10. Nfd2 {[%emt 0:01:49]} Qe5 {[%emt 0:04:56]} 11. Ng3 {
[%emt 0:04:59]} O-O {[%emt 0:01:07]} 12. a3 {[%emt 0:00:21]} Be7 {[%emt 0:00:
00]} 13. Qc2 {[%emt 0:01:12]} Be6 {[%emt 0:03:53]} 14. Nge4 {[%emt 0:01:55]} f5
{[%emt 0:01:04]} 15. Nc4 {[%emt 0:01:17]} Qxe4 {[%emt 0:00:12]} 16. Qxe4 {
[%emt 0:02:18]} fxe4 {[%emt 0:00:06]} 17. Rc1 {[%emt 0:01:33]} Nd7 {[%emt 0:00:
00]} 18. e3 {[%emt 0:04:00]} d3 {[%emt 0:00:54]} 19. Nd2 {[%emt 0:01:07]} Bd5 {
[%emt 0:01:07]} 20. g3 {[%emt 0:01:08]} Rac8 {[%emt 0:00:16]} 21. Kd1 {[%emt 0:
00:00]} Rxc1+ {[%emt 0:01:18]} 22. Kxc1 {[%emt 0:00:07]} Nc5 {[%emt 0:01:56]}
23. b4 {[%emt 0:09:03]} Nb3+ {[%emt 0:00:18]} 24. Nxb3 {[%emt 0:00:54]} Bxb3 {
[%emt 0:00:10]} 25. f3 {[%emt 0:02:40]} Rxf3 {[%emt 0:00:42]} 26. Bg2 {[%emt 0:
00:00]} Rxe3 {[%emt 0:00:18]} 27. Kd2 {[%emt 0:01:15]} Re2+ {[%emt 0:00:35]}
28. Kc3 {[%emt 0:00:25]} Bf7 {[%emt 0:02:44]} 29. Bxe4 {[%emt 0:05:48]} Rxe4 {
[%emt 0:00:28]} 30. Kxd3 {[%emt 0:00:07]} Bg6 {[%emt 0:00:17]} 31. Kc3 {
[%emt 0:05:09]} Bf6+ {[%emt 0:00:58]} 32. Kb3 {[%emt 0:01:01]} b5 {[%emt 0:00:
00]} 0-1

[Event "44th Chess Olympiad Women 2022"]
[Site "Chennai"]
[Date "2022.08.08"]
[Round "10.58"]
[White "Prasad, Tanvi"]
[Black "Appau Abena Tiwaa"]
[Result "1/2-1/2"]
[WhiteElo "1165"]
[BlackElo "1103"]
[Annotator "NA RC"]
[PlyCount "88"]
[EventDate "2022.??.??"]
[TimeControl "60"]

1. d4 {[%emt 0:00:03]} g6 {[%emt 0:00:21]} 2. c4 {[%emt 0:00:13]} Nf6 {[%emt 0:
00:00]} 3. Nc3 {[%emt 0:00:13]} Bg7 {[%emt 0:00:17]} 4. Nf3 {[%emt 0:00:40]}
O-O {[%emt 0:00:23]} 5. e4 {[%emt 0:00:28]} d6 {[%emt 0:00:26]} 6. Bd3 {
[%emt 0:00:45]} Bg4 {[%emt 0:00:14]} 7. h3 {[%emt 0:00:14]} Bxf3 {[%emt 0:00:
00]} 8. Qxf3 {[%emt 0:00:42]} Nc6 {[%emt 0:00:22]} 9. d5 {[%emt 0:02:28]} Nd4 {
[%emt 0:00:51]} 10. Qd1 {[%emt 0:00:44]} e6 {[%emt 0:01:00]} 11. Be3 {[%emt 0:
00:00]} Nd7 {[%emt 0:00:52]} 12. Bb1 {[%emt 0:01:37]} c5 {[%emt 0:02:03]} 13.
O-O {[%emt 0:03:14]} exd5 {[%emt 0:01:55]} 14. exd5 {[%emt 0:04:36]} Qb6 {
[%emt 0:02:22]} 15. Na4 {[%emt 0:03:53]} Qc7 {[%emt 0:01:11]} 16. Bd3 {[%emt 0:
00:00]} Nb6 {[%emt 0:02:18]} 17. Nc3 {[%emt 0:01:27]} f5 {[%emt 0:01:46]} 18.
Qd2 {[%emt 0:02:30]} Be5 {[%emt 0:01:58]} 19. Bf4 {[%emt 0:02:48]} Bxf4 {
[%emt 0:01:14]} 20. Qxf4 {[%emt 0:00:25]} Rae8 {[%emt 0:00:56]} 21. Rfe1 {
[%emt 0:00:56]} Nd7 {[%emt 0:01:10]} 22. Qd2 {[%emt 0:03:17]} Rxe1+ {[%emt 0:
00:00]} 23. Rxe1 {[%emt 0:01:19]} Ne5 {[%emt 0:00:52]} 24. Be2 {[%emt 0:04:33]}
Qd8 {[%emt 0:02:20]} 25. f4 {[%emt 0:04:20]} Nd7 {[%emt 0:02:09]} 26. Bd3 {
[%emt 0:02:35]} Re8 {[%emt 0:01:13]} 27. Ne2 {[%emt 0:00:44]} Nxe2+ {[%emt 0:
00:00]} 28. Rxe2 {[%emt 0:00:13]} Rxe2 {[%emt 0:00:44]} 29. Qxe2 {[%emt 0:00:
00]} Nf6 {[%emt 0:01:04]} 30. g3 {[%emt 0:04:50]} Nh5 {[%emt 0:01:19]} 31. Kg2
{[%emt 0:00:55]} Qd7 {[%emt 0:04:48]} 32. b3 {[%emt 0:01:21]} Kg7 {[%emt 0:00:
00]} 33. Kf3 {[%emt 0:02:00]} Qd8 {[%emt 0:01:54]} 34. Qb2+ {[%emt 0:00:59]}
Kf7 {[%emt 0:00:49]} 35. b4 {[%emt 0:01:18]} b6 {[%emt 0:01:02]} 36. bxc5 {
[%emt 0:03:19]} bxc5 {[%emt 0:00:22]} 37. Qb7+ {[%emt 0:00:21]} Qe7 {[%emt 0:
00:00]} 38. Qxe7+ {[%emt 0:00:47]} Kxe7 {[%emt 0:00:38]} 39. g4 {[%emt 0:00:09]
} fxg4+ {[%emt 0:01:07]} 40. hxg4 {[%emt 0:01:27]} Nf6 {[%emt 0:01:18]} 41. g5
{[%emt 0:32:24]} Nd7 {[%emt 0:30:47]} 42. Ke4 {[%emt 0:01:47]} Kd8 {[%emt 0:00:
00]} 43. Bc2 {[%emt 0:01:14]} Kc7 {[%emt 0:00:46]} 44. Ba4 {[%emt 0:00:44]} Nb6
{[%emt 0:00:23]} 1/2-1/2

[Event "44th Chess Olympiad Women 2022"]
[Site "Chennai"]
[Date "2022.08.08"]
[Round "10.58"]
[White "Sewak, Aarti"]
[Black "Benson, Maud"]
[Result "0-1"]
[WhiteElo "1412"]
[BlackElo "1334"]
[Annotator "NA RC"]
[PlyCount "95"]
[EventDate "2022.??.??"]
[TimeControl "60"]

1. Nf3 {[%emt 0:00:02]} g6 {[%emt 0:00:15]} 2. d4 {[%emt 0:00:08]} Bg7 {
[%emt 0:00:15]} 3. g3 {[%emt 0:00:20]} d6 {[%emt 0:00:19]} 4. Bg2 {[%emt 0:00:
00]} Nf6 {[%emt 0:00:16]} 5. Nc3 {[%emt 0:00:19]} Nbd7 {[%emt 0:00:10]} 6. Bd2
{[%emt 0:02:52]} c6 {[%emt 0:00:22]} 7. h3 {[%emt 0:00:19]} O-O {[%emt 0:00:13]
} 8. Qc1 {[%emt 0:00:08]} Qc7 {[%emt 0:00:34]} 9. Bh6 {[%emt 0:01:21]} Re8 {
[%emt 0:00:53]} 10. e4 {[%emt 0:04:19]} e5 {[%emt 0:01:23]} 11. Bxg7 {[%emt 0:
00:00]} Kxg7 {[%emt 0:00:09]} 12. O-O {[%emt 0:00:33]} exd4 {[%emt 0:00:33]}
13. Nxd4 {[%emt 0:00:16]} Nc5 {[%emt 0:00:27]} 14. Re1 {[%emt 0:00:34]} a5 {
[%emt 0:00:20]} 15. f4 {[%emt 0:01:57]} Re7 {[%emt 0:02:07]} 16. Kh1 {[%emt 0:
00:00]} a4 {[%emt 0:00:15]} 17. a3 {[%emt 0:00:16]} Bd7 {[%emt 0:00:21]} 18.
Qd1 {[%emt 0:03:15]} Rae8 {[%emt 0:00:19]} 19. Kh2 {[%emt 0:11:14]} Ncxe4 {
[%emt 0:01:11]} 20. Nxe4 {[%emt 0:03:47]} Nxe4 {[%emt 0:01:02]} 21. Nf3 {
[%emt 0:02:20]} Qc8 {[%emt 0:01:50]} 22. Ng1 {[%emt 0:04:36]} d5 {[%emt 0:00:
00]} 23. c4 {[%emt 0:02:26]} Be6 {[%emt 0:04:48]} 24. Rc1 {[%emt 0:01:34]} Kg8
{[%emt 0:00:38]} 25. Bxe4 {[%emt 0:02:32]} dxe4 {[%emt 0:01:09]} 26. Rxe4 {
[%emt 0:00:31]} Bg4 {[%emt 0:06:47]} 27. hxg4 {[%emt 0:08:04]} Rxe4 {[%emt 0:
00:00]} 28. Rc3 {[%emt 0:01:03]} Re1 {[%emt 0:03:13]} 29. Qf3 {[%emt 0:05:28]}
Qe6 {[%emt 0:01:04]} 30. Rc2 {[%emt 0:03:48]} Qe3 {[%emt 0:01:21]} 31. Qg2 {
[%emt 0:01:44]} Rd8 {[%emt 0:01:40]} 32. Nf3 {[%emt 0:03:14]} Rc1 {[%emt 0:00:
00]} 33. Re2 {[%emt 0:02:34]} Qc5 {[%emt 0:01:20]} 34. Rc2 {[%emt 0:08:09]}
Rxc2 {[%emt 0:02:06]} 35. Qxc2 {[%emt 0:00:12]} Qe3 {[%emt 0:00:10]} 36. Kg2 {
[%emt 0:03:40]} Rd3 {[%emt 0:00:31]} 37. Qf2 {[%emt 0:01:46]} Qxf2+ {[%emt 0:
00:00]} 38. Kxf2 {[%emt 0:00:12]} Rb3 {[%emt 0:00:26]} 39. Nd2 {[%emt 0:01:34]}
Rxb2 {[%emt 0:00:29]} 40. Ke3 {[%emt 0:00:15]} Ra2 {[%emt 0:00:35]} 41. Nb1 {
[%emt 0:31:27]} Ra1 {[%emt 0:30:21]} 42. Nc3 {[%emt 0:00:34]} Rxa3 {[%emt 0:00:
00]} 43. Kd2 {[%emt 0:00:06]} h6 {[%emt 0:02:34]} 44. Kc2 {[%emt 0:02:37]}
Rxc3+ {[%emt 0:00:52]} 45. Kxc3 {[%emt 0:00:25]} b5 {[%emt 0:00:08]} 46. f5 {
[%emt 0:03:32]} gxf5 {[%emt 0:01:05]} 47. gxf5 {[%emt 0:00:44]} Kg7 {[%emt 0:
00:00]} 48. Kd4 {[%emt 0:03:55]} 0-1

[Event "44th Chess Olympiad Women 2022"]
[Site "Chennai"]
[Date "2022.08.08"]
[Round "10.59"]
[White "Aponte, Samantha"]
[Black "Mefteh, Meyssem"]
[Result "0-1"]
[WhiteElo "1087"]
[BlackElo "1254"]
[Annotator "NA RC"]
[PlyCount "94"]
[EventDate "2022.??.??"]
[TimeControl "60"]

1. d4 {[%emt 0:00:02]} Nf6 {[%emt 0:00:04]} 2. Bf4 {[%emt 0:00:20]} d5 {
[%emt 0:00:35]} 3. e3 {[%emt 0:00:49]} e6 {[%emt 0:03:07]} 4. Nf3 {[%emt 0:00:
00]} c5 {[%emt 0:00:54]} 5. c3 {[%emt 0:00:23]} Bd6 {[%emt 0:06:47]} 6. Bg3 {
[%emt 0:00:20]} Qc7 {[%emt 0:11:33]} 7. Nbd2 {[%emt 0:03:54]} c4 {[%emt 0:00:
00]} 8. Be2 {[%emt 0:01:47]} Bxg3 {[%emt 0:02:31]} 9. hxg3 {[%emt 0:01:15]} Nc6
{[%emt 0:00:34]} 10. b3 {[%emt 0:11:57]} b5 {[%emt 0:07:56]} 11. Qc2 {[%emt 0:
00:00]} a6 {[%emt 0:04:12]} 12. e4 {[%emt 0:10:22]} cxb3 {[%emt 0:09:52]} 13.
axb3 {[%emt 0:00:42]} Nb4 {[%emt 0:01:47]} 14. Qc1 {[%emt 0:10:16]} dxe4 {
[%emt 0:05:14]} 15. cxb4 {[%emt 0:02:10]} Qxc1+ {[%emt 0:00:19]} 16. Rxc1 {
[%emt 0:00:18]} exf3 {[%emt 0:00:04]} 17. Nxf3 {[%emt 0:04:10]} Bb7 {[%emt 0:
00:00]} 18. Rc7 {[%emt 0:07:01]} Bd5 {[%emt 0:00:32]} 19. Rc3 {[%emt 0:07:58]}
O-O {[%emt 0:01:50]} 20. O-O {[%emt 0:15:26]} Ne4 {[%emt 0:02:18]} 21. Re3 {
[%emt 0:03:55]} Rfc8 {[%emt 0:00:40]} 22. Bd3 {[%emt 0:02:39]} Nc3 {[%emt 0:00:
00]} 23. Ra1 {[%emt 0:07:55]} f6 {[%emt 0:14:33]} 24. Bc2 {[%emt 0:00:30]} Rc6
{[%emt 0:03:50]} 25. Kf1 {[%emt 0:00:29]} Rac8 {[%emt 0:02:59]} 26. Bd1 {
[%emt 0:00:36]} Nxd1 {[%emt 0:02:40]} 27. Rxd1 {[%emt 0:00:02]} Rc3 {[%emt 0:
00:00]} 28. Ra1 {[%emt 0:00:57]} Rxe3 {[%emt 0:01:58]} 29. fxe3 {[%emt 0:00:06]
} Bxb3 {[%emt 0:00:23]} 30. Rxa6 {[%emt 0:00:48]} Rc1+ {[%emt 0:00:36]} 31. Ne1
{[%emt 0:00:17]} Bc4+ {[%emt 0:00:31]} 32. Kf2 {[%emt 0:00:10]} Rb1 {[%emt 0:
00:00]} 33. Ra8+ {[%emt 0:01:10]} Kf7 {[%emt 0:00:05]} 34. Ra7+ {[%emt 0:00:03]
} Kg6 {[%emt 0:00:02]} 35. Re7 {[%emt 0:01:00]} Rxb4 {[%emt 0:00:17]} 36. Rb7 {
[%emt 0:00:23]} Rb2+ {[%emt 0:00:11]} 37. Kg1 {[%emt 0:00:12]} Rb1 {[%emt 0:00:
00]} 38. Kf2 {[%emt 0:00:14]} b4 {[%emt 0:00:21]} 39. Rc7 {[%emt 0:01:04]} Bd5
{[%emt 0:01:25]} 40. Nc2 {[%emt 0:00:35]} b3 {[%emt 0:01:27]} 41. Na3 {[%emt 0:
00:00]} Rb2+ {[%emt 0:30:44]} 42. Ke1 {[%emt 0:00:00]} Ra2 {[%emt 0:00:00]} 43.
Nc4 {[%emt 0:00:00]} Bxc4 {[%emt 0:00:00]} 44. Rxc4 {[%emt 0:00:00]} Ra1+ {
[%emt 0:00:00]} 45. Kd2 {[%emt 0:00:00]} b2 {[%emt 0:00:00]} 46. Rb4 {[%emt 0:
00:00]} b1=Q {[%emt 0:00:00]} 47. Rxb1 {[%emt 0:00:00]} Rxb1 {[%emt 0:00:00]}
0-1

[Event "44th Chess Olympiad Women 2022"]
[Site "Chennai"]
[Date "2022.08.08"]
[Round "10.59"]
[White "Hwass Zeineb"]
[Black "Sagastegui, Thamara"]
[Result "1-0"]
[WhiteElo "1386"]
[BlackElo "1362"]
[Annotator "NA RC"]
[PlyCount "65"]
[EventDate "2022.??.??"]
[TimeControl "60"]

1. d4 {[%emt 0:00:03]} d5 {[%emt 0:00:06]} 2. Bf4 {[%emt 0:00:06]} Bf5 {
[%emt 0:04:00]} 3. e3 {[%emt 0:01:10]} e6 {[%emt 0:04:08]} 4. Nf3 {[%emt 0:00:
00]} Nf6 {[%emt 0:06:55]} 5. Nbd2 {[%emt 0:01:05]} c5 {[%emt 0:07:26]} 6. Bxb8
{[%emt 0:00:59]} Rxb8 {[%emt 0:02:36]} 7. Bb5+ {[%emt 0:00:45]} Ke7 {[%emt 0:
00:00]} 8. dxc5 {[%emt 0:02:15]} Qa5 {[%emt 0:03:22]} 9. Nd4 {[%emt 0:01:46]}
a6 {[%emt 0:05:05]} 10. Nxf5+ {[%emt 0:04:44]} exf5 {[%emt 0:00:07]} 11. Bd3 {
[%emt 0:00:19]} g6 {[%emt 0:04:10]} 12. O-O {[%emt 0:02:08]} Qxc5 {[%emt 0:00:
00]} 13. c3 {[%emt 0:02:09]} Bg7 {[%emt 0:04:43]} 14. Nf3 {[%emt 0:08:39]} Rhe8
{[%emt 0:06:24]} 15. Bc2 {[%emt 0:03:59]} Ne4 {[%emt 0:03:27]} 16. Bb3 {
[%emt 0:03:08]} Rbd8 {[%emt 0:02:06]} 17. Qd3 {[%emt 0:06:03]} Qa5 {[%emt 0:00:
00]} 18. Rfd1 {[%emt 0:16:35]} Nc5 {[%emt 0:02:56]} 19. Qc2 {[%emt 0:00:09]}
Nxb3 {[%emt 0:03:11]} 20. Qxb3 {[%emt 0:00:03]} Rd7 {[%emt 0:03:41]} 21. Nd4 {
[%emt 0:02:23]} Qc5 {[%emt 0:02:50]} 22. Nc2 {[%emt 0:02:02]} a5 {[%emt 0:00:
00]} 23. Nd4 {[%emt 0:06:52]} Rc8 {[%emt 0:06:05]} 24. Rdc1 {[%emt 0:08:19]}
Rdc7 {[%emt 0:01:43]} 25. Nb5 {[%emt 0:03:02]} Rd7 {[%emt 0:00:21]} 26. Qa3 {
[%emt 0:02:35]} Qxa3 {[%emt 0:00:20]} 27. Nxa3 {[%emt 0:00:01]} Be5 {[%emt 0:
00:00]} 28. Nb5 {[%emt 0:00:31]} f4 {[%emt 0:00:33]} 29. Re1 {[%emt 0:01:25]}
Kf8 {[%emt 0:00:24]} 30. exf4 {[%emt 0:00:16]} Bxf4 {[%emt 0:00:04]} 31. Re2 {
[%emt 0:00:36]} Re8 {[%emt 0:01:02]} 32. Rxe8+ {[%emt 0:02:22]} Kxe8 {[%emt 0:
00:00]} 33. Rd1 {[%emt 0:00:00]} 1-0

[Event "44th Chess Olympiad Women 2022"]
[Site "Chennai"]
[Date "2022.08.08"]
[Round "10.59"]
[White "Jacobs, Annelaine"]
[Black "Meddeb, Chadha"]
[Result "0-1"]
[WhiteElo "1612"]
[BlackElo "1561"]
[Annotator "NA RC"]
[PlyCount "113"]
[EventDate "2022.??.??"]
[TimeControl "60"]

1. e4 {[%emt 0:00:03]} e6 {[%emt 0:00:10]} 2. d4 {[%emt 0:00:05]} d5 {[%emt 0:
00:00]} 3. exd5 {[%emt 0:00:04]} exd5 {[%emt 0:00:04]} 4. Bd3 {[%emt 0:00:12]}
Nc6 {[%emt 0:00:25]} 5. c3 {[%emt 0:00:10]} Bd6 {[%emt 0:00:30]} 6. Ne2 {
[%emt 0:04:32]} Bg4 {[%emt 0:08:27]} 7. h3 {[%emt 0:02:16]} Qh4 {[%emt 0:13:32]
} 8. Qc2 {[%emt 0:29:46]} Nge7 {[%emt 0:07:07]} 9. Be3 {[%emt 0:12:39]} f5 {
[%emt 0:19:56]} 10. g3 {[%emt 0:06:31]} Qh5 {[%emt 0:01:29]} 11. Nf4 {[%emt 0:
00:00]} Bxf4 {[%emt 0:01:16]} 12. Bxf4 {[%emt 0:00:04]} Bf3 {[%emt 0:05:29]}
13. Be2 {[%emt 0:01:33]} O-O-O {[%emt 0:02:19]} 14. Qd3 {[%emt 0:02:52]} Bxe2 {
[%emt 0:07:59]} 15. Qxe2 {[%emt 0:00:05]} Qxe2+ {[%emt 0:00:26]} 16. Kxe2 {
[%emt 0:00:03]} Ng6 {[%emt 0:00:21]} 17. Be3 {[%emt 0:01:33]} Rde8 {[%emt 0:00:
00]} 18. Kd3 {[%emt 0:01:13]} Rhf8 {[%emt 0:01:33]} 19. f4 {[%emt 0:03:59]} Na5
{[%emt 0:03:47]} 20. b3 {[%emt 0:01:56]} b6 {[%emt 0:04:20]} 21. Nd2 {[%emt 0:
00:00]} Ne7 {[%emt 0:01:26]} 22. Rhe1 {[%emt 0:05:32]} Ng8 {[%emt 0:01:33]} 23.
Bf2 {[%emt 0:08:54]} Nf6 {[%emt 0:00:37]} 24. c4 {[%emt 0:09:01]} c6 {[%emt 0:
00:00]} 25. Rxe8+ {[%emt 0:05:13]} Rxe8 {[%emt 0:00:02]} 26. Re1 {[%emt 0:00:
00]} Ne4 {[%emt 0:01:29]} 27. Nxe4 {[%emt 0:00:41]} dxe4+ {[%emt 0:00:29]} 28.
Kc3 {[%emt 0:00:27]} Nb7 {[%emt 0:00:58]} 29. Be3 {[%emt 0:00:41]} Kc7 {
[%emt 0:04:01]} 30. a4 {[%emt 0:00:41]} h5 {[%emt 0:00:35]} 31. Rg1 {[%emt 0:
00:00]} Rh8 {[%emt 0:04:02]} 32. g4 {[%emt 0:01:05]} hxg4 {[%emt 0:00:04]} 33.
hxg4 {[%emt 0:00:09]} Rh3 {[%emt 0:00:12]} 34. Kd2 {[%emt 0:00:43]} Na5 {
[%emt 0:00:34]} 35. gxf5 {[%emt 0:00:36]} Nxb3+ {[%emt 0:00:04]} 36. Ke2 {
[%emt 0:00:24]} Rh2+ {[%emt 0:01:44]} 37. Kf1 {[%emt 0:00:38]} Rh7 {[%emt 0:00:
00]} 38. Rg2 {[%emt 0:00:34]} Na5 {[%emt 0:00:47]} 39. c5 {[%emt 0:00:31]} Nc4
{[%emt 0:00:25]} 40. cxb6+ {[%emt 0:00:28]} axb6 {[%emt 0:00:01]} 41. Re2 {
[%emt 0:30:23]} Nd6 {[%emt 0:30:27]} 42. Bf2 {[%emt 0:00:37]} Rh5 {[%emt 0:00:
00]} 43. Re3 {[%emt 0:00:00]} Rxf5 {[%emt 0:00:00]} 44. Rg3 {[%emt 0:00:00]}
Rxf4 {[%emt 0:00:00]} 45. Rxg7+ {[%emt 0:00:00]} Rf7 {[%emt 0:00:00]} 46. Rxf7+
{[%emt 0:00:00]} Nxf7 {[%emt 0:00:00]} 47. Bg3+ {[%emt 0:00:00]} Kd7 {[%emt 0:
00:00]} 48. Ke2 {[%emt 0:00:00]} Nh6 {[%emt 0:00:00]} 49. Bf4 {[%emt 0:03:17]}
Nf5 {[%emt 0:00:00]} 50. Be3 {[%emt 0:00:42]} Ne7 {[%emt 0:00:00]} 51. Bg5 {
[%emt 0:00:34]} Nd5 {[%emt 0:00:00]} 52. Kd2 {[%emt 0:00:20]} Ke6 {[%emt 0:00:
00]} 53. Bd8 {[%emt 0:00:34]} Kf5 {[%emt 0:00:00]} 54. a5 {[%emt 0:00:23]} bxa5
{[%emt 0:00:00]} 55. Bxa5 {[%emt 0:00:06]} Kf4 {[%emt 0:00:00]} 56. Ke2 {
[%emt 0:00:55]} e3 {[%emt 0:01:08]} 57. Be1 {[%emt 0:00:42]} 0-1